lending/lending_fUSD_20241229
["ID","MTS","AMOUNT","RATE_DAILY","PERIOD"]
[347058229,1735486256027,-151.0,0.00011983,2]
[347058230,1735486256036,-1665.9,0.00011999,2]
[347058231,1735486256045,-1665.9,0.00011999,2]
[347058232,1735486256055,-448226.18084,0.00012,2]
[347058233,1735486256064,-450.0,0.00012,2]
[347058234,1735486256074,-154.24342154,0.00012,2]
[347058235,1735486256083,-1057.0,0.00012038,2]
[347058236,1735486256096,-152.42,0.00012045,2]
[347058237,1735486256106,-150.71,0.00012045,2]
[347058238,1735486256116,-151.76,0.00012045,2]
[347058239,1735486256125,-151.38,0.00012047,2]
[347058240,1735486256135,-1542.2,0.00012055,2]
[347058241,1735486256144,-437.4,0.00012055,2]
[347058242,1735486256154,-437.4,0.00012055,2]
[347058243,1735486256163,-437.4,0.00012055,2]
[347058244,1735486256172,-437.4,0.00012055,2]
[347058245,1735486256182,-500.0,0.00012073,2]
[347058246,1735486256191,-500.0,0.00012073,2]
[347058247,1735486256202,-29999.99,0.00012087,2]
[347058248,1735486256212,-9999.99,0.00012087,2]
[347058249,1735486256222,-29999.99,0.00012087,2]
[347058250,1735486256232,-883.75,0.00012089,2]
[347058251,1735486256241,-2006.8,0.00012089,2]
[347058252,1735486256251,-870.99,0.00012089,2]
[347058253,1735486256261,-500.0,0.00012089,2]
[347058254,1735486256270,-500.0,0.00012089,2]
[347058255,1735486256279,-1679.12,0.00012089,2]
[347058256,1735486256288,-500.0,0.00012089,2]
[347058257,1735486256298,-2828.29924697,0.0001209,2]
[347058258,1735486256307,-1370441.5983276,0.0001209,2]
[347058259,1735486256322,-649.23,0.0001209,2]
[347058260,1735486256331,-539.17,0.0001209,2]
[347058261,1735486256341,-1602.52,0.0001209,2]
[347058262,1735486256351,-500.0,0.0001209,2]
[347058263,1735486256360,-500.0,0.0001209,2]
[347058264,1735486256370,-500.0,0.0001209,2]
[347058265,1735486256380,-1184.52,0.0001209,2]
[347058266,1735486256389,-689.11,0.0001209,2]
[347058267,1735486256399,-2424.84,0.0001209,2]
[347058268,1735486256408,-1768.51,0.0001209,2]
[347058269,1735486256422,-1901.64,0.0001209,2]
[347058270,1735486256431,-1276.18,0.0001209,2]
[347058271,1735486256441,-1812.59,0.0001209,2]
[347058272,1735486256454,-371.62950607,0.0001209,2]
[347058273,1735486256481,-715.43049393,0.0001209,2]
[347058274,1735486256491,-813.91,0.0001209,2]
[347058275,1735486256501,-1075.07,0.0001209,2]
[347058276,1735486256510,-500.0,0.0001209,2]
[347058277,1735486256520,-1599.36,0.0001209,2]
[347058278,1735486256530,-500.0,0.0001209,2]
[347058279,1735486256540,-500.0,0.0001209,2]
[347058280,1735486256550,-31.48247384,0.0001209,2]
[347058281,1735486256561,-699.61752616,0.0001209,2]
[347058282,1735486256570,-29.31716736,0.0001209,2]
[347058283,1735486257287,-647.54,0.00011541,2]
[347058284,1735486257296,-500.0,0.00011542,2]
[347058285,1735486257305,-500.0,0.00011543,2]
[347058286,1735486257315,-500.0,0.00011544,2]
[347058287,1735486257324,-490.50636049,0.00011818,2]
[347058288,1735486257336,-9.49363951,0.00011818,2]
[347058289,1735486257345,-470.68283264,0.0001209,2]
[347058290,1735486257354,-2142.9,0.0001209,2]
[347058291,1735486257363,-500.0,0.0001209,2]
[347058292,1735486257372,-1822.01373699,0.0001209,2]
[347058293,1735486257392,-367.52626301,0.0001209,2]
[347058294,1735486257401,-286.98232345,0.0001209,2]
[347058295,1735486257506,-1376.79767655,0.0001209,2]
[347058296,1735486257515,-500.0,0.0001209,2]
[347058297,1735486257525,-1310.46,0.0001209,2]
[347058298,1735486257716,-500.0,0.0001209,2]
[347058299,1735486257726,-1111.42543325,0.0001209,2]
[347058300,1735486338740,153.62,0.000179,31]
[347058301,1735486338832,153.62,0.000179,31]
[347058302,1735486338882,153.62,0.000179,31]
[347058303,1735486338997,153.62,0.000179,31]
[347058304,1735486339115,153.62,0.000179,31]
[347058305,1735486339167,153.62,0.000179,31]
[347058306,1735486339206,153.62,0.000179,31]
[347058307,1735486382635,239.58,0.00016658,30]
[347058308,1735486474726,500.0,0.00024763,120]
[347058310,1735486550630,214.81,0.00010137,2]
[347058311,1735486601399,167.14,0.00010948,2]
[347058312,1735486643746,250.0,0.00010826,2]
[347058313,1735486692682,420.95,8.905e-05,2]
[347058314,1735486713950,1000.0,0.00010829,2]
[347058315,1735486887595,1787.63653442,0.00011,2]
[347058316,1735486897165,250.0,0.00010713,2]
[347058317,1735486944775,153.64,0.000179,31]
[347058318,1735486944839,153.64,0.000179,31]
[347058319,1735486944896,153.64,0.000179,31]
[347058320,1735486944958,153.64,0.000179,31]
[347058321,1735486945008,153.64,0.000179,31]
[347058322,1735486945072,153.64,0.000179,31]
[347058323,1735486945128,153.64,0.000179,31]
[347058324,1735486962345,-10000.0,0.00011037,2]
[347058325,1735486968312,-10000.0,0.00011037,2]
[347058326,1735486981450,-3900.0,0.00011037,2]
[347058327,1735486981472,-420.95,0.00011169,2]
[347058328,1735486981493,-173.83071428,0.00011443,2]
[347058329,1735486981514,-5505.21928572,0.00011443,2]
[347058330,1735486992759,-357.042,0.0001149,2]
[347058331,1735486992782,-500.0,0.0001154,2]
[347058332,1735486992802,-600.1184008,0.0001154,2]
[347058333,1735486992826,-2892.59,0.0001154,2]
[347058334,1735486992848,-2359.09,0.0001154,2]
[347058335,1735486992871,-500.0,0.00011541,2]
[347058336,1735486992893,-500.0,0.00011541,2]
[347058337,1735486992916,-500.0,0.00011541,2]
[347058338,1735486992939,-500.0,0.00011541,2]
[347058339,1735486992961,-648.77,0.00011541,2]
[347058340,1735486992984,-500.0,0.00011541,2]
[347058341,1735486993007,-142.3895992,0.00011541,2]
[347058342,1735486998012,-500.0,0.0001154,2]
[347058343,1735486998034,-357.6104008,0.00011541,2]
[347058344,1735486998056,-500.0,0.00011541,2]
[347058345,1735486998079,-734.74,0.00011541,2]
[347058346,1735486998101,-500.0,0.00011541,2]
[347058347,1735486998122,-500.0,0.00011541,2]
[347058348,1735486998145,-501.67616086,0.00011541,2]
[347058349,1735486998166,-500.0,0.00011541,2]
[347058350,1735486998187,-862.18,0.00011541,2]
[347058351,1735486998209,-500.0,0.00011541,2]
[347058352,1735486998230,-501.83019583,0.00011541,2]
[347058353,1735486998251,-500.0,0.00011541,2]
[347058354,1735486998273,-513.47999018,0.00011541,2]
[347058355,1735486998294,-500.0,0.00011541,2]
[347058356,1735486998317,-971.73,0.00011541,2]
[347058357,1735486998339,-839.86,0.00011541,2]
[347058358,1735486998361,-657.25,0.00011541,2]
[347058359,1735486998383,-59.64325233,0.00011541,2]
[347058360,1735487003931,-349.43474441,0.00011541,2]
[347058361,1735487003953,-500.0,0.00011541,2]
[347058362,1735487003976,-500.0,0.00011541,2]
[347058363,1735487003998,-246.53537077,0.00011541,2]
[347058364,1735487004021,-500.0,0.00011541,2]
[347058365,1735487004044,-863.08,0.00011541,2]
[347058366,1735487004065,-500.0,0.00011541,2]
[347058367,1735487004088,-500.0,0.00011541,2]
[347058368,1735487004110,-1073.76,0.00011541,2]
[347058369,1735487004132,-527.83,0.00011541,2]
[347058370,1735487004156,-500.0,0.00011541,2]
[347058371,1735487004181,-500.0,0.00011541,2]
[347058372,1735487004204,-500.0,0.00011541,2]
[347058373,1735487004228,-500.0,0.00011541,2]
[347058374,1735487004250,-500.0,0.00011541,2]
[347058375,1735487004272,-500.0,0.00011541,2]
[347058376,1735487004293,-500.0,0.00011541,2]
[347058377,1735487004315,-500.0,0.00011541,2]
[347058378,1735487004337,-439.35988482,0.00011541,2]
[347058379,1735487009201,-60.64011518,0.00011541,2]
[347058380,1735487009223,-500.0,0.00011541,2]
[347058381,1735487009246,-500.0,0.00011541,2]
[347058382,1735487009268,-502.08328553,0.00011541,2]
[347058383,1735487009558,-500.0,0.00011541,2]
[347058384,1735487009580,-500.0,0.00011541,2]
[347058385,1735487009603,-500.0,0.00011541,2]
[347058386,1735487009628,-500.0,0.00011541,2]
[347058387,1735487009653,-500.0,0.00011541,2]
[347058388,1735487009676,-500.0,0.00011541,2]
[347058389,1735487009699,-500.0,0.00011541,2]
[347058390,1735487009720,-500.0,0.00011541,2]
[347058391,1735487009742,-500.0,0.00011541,2]
[347058392,1735487009765,-500.0,0.00011541,2]
[347058393,1735487009786,-999.34,0.00011541,2]
[347058394,1735487009808,-500.0,0.00011541,2]
[347058395,1735487009830,-1174.41,0.00011541,2]
[347058396,1735487009852,-500.0,0.00011541,2]
[347058397,1735487009874,-263.52659929,0.00011541,2]
[347058398,1735487014970,-236.47340071,0.00011541,2]
[347058399,1735487014991,-593.99286271,0.00011541,2]
[347058400,1735487015012,-500.0,0.00011541,2]
[347058401,1735487015033,-709.21,0.00011541,2]
[347058402,1735487015054,-1892.08,0.00011541,2]
[347058403,1735487015076,-500.0,0.00011541,2]
[347058404,1735487015098,-508.75077606,0.00011541,2]
[347058405,1735487015119,-500.0,0.00011541,2]
[347058406,1735487015141,-545.1,0.00011541,2]
[347058407,1735487015164,-524.45281876,0.00011541,2]
[347058408,1735487015186,-500.0,0.00011541,2]
[347058409,1735487015207,-500.0,0.00011541,2]
[347058410,1735487015229,-500.0,0.00011541,2]
[347058411,1735487015249,-500.0,0.00011541,2]
[347058412,1735487015272,-500.0,0.00011541,2]
[347058413,1735487015294,-500.0,0.00011541,2]
[347058414,1735487015315,-489.94014176,0.00011541,2]
[347058415,1735487019492,-565.78985824,0.00011541,2]
[347058416,1735487019515,-498.78138889,0.00011541,2]
[347058417,1735487019537,-500.0,0.00011541,2]
[347058418,1735487019559,-500.0,0.00011541,2]
[347058419,1735487019580,-783.35,0.00011541,2]
[347058420,1735487019603,-1020.32,0.00011541,2]
[347058421,1735487019624,-500.0,0.00011541,2]
[347058422,1735487019645,-500.0,0.00011541,2]
[347058423,1735487019673,-500.0,0.00011541,2]
[347058424,1735487019698,-500.0,0.00011541,2]
[347058425,1735487019719,-2322.44,0.00011541,2]
[347058426,1735487019740,-500.0,0.00011541,2]
[347058427,1735487019762,-1167.31,0.00011541,2]
[347058428,1735487019784,-142.00875287,0.00011541,2]
[347058429,1735487024645,-357.99124713,0.00011541,2]
[347058430,1735487024669,-1390.43,0.00011541,2]
[347058431,1735487024692,-500.0,0.00011541,2]
[347058432,1735487024714,-507.32,0.00011541,2]
[347058433,1735487024736,-590.44,0.00011541,2]
[347058434,1735487024758,-1273.29,0.00011541,2]
[347058435,1735487024779,-500.0,0.00011541,2]
[347058436,1735487024799,-500.0,0.00011541,2]
[347058437,1735487024821,-500.0,0.00011541,2]
[347058438,1735487024842,-500.0,0.00011541,2]
[347058439,1735487024863,-500.0,0.00011541,2]
[347058440,1735487024883,-500.0,0.00011541,2]
[347058441,1735487024904,-500.0,0.00011541,2]
[347058442,1735487024925,-1880.52875287,0.00011541,2]
[347058443,1735487028821,-205.36124713,0.00011541,2]
[347058444,1735487028844,-500.0,0.00011541,2]
[347058445,1735487028867,-982.91,0.00011541,2]
[347058446,1735487028891,-1221.04,0.00011541,2]
[347058447,1735487028914,-520.58,0.00011541,2]
[347058448,1735487028944,-535.36,0.00011541,2]
[347058449,1735487028968,-500.0,0.00011541,2]
[347058450,1735487028990,-2473.78,0.00011541,2]
[347058451,1735487029012,-500.0,0.00011541,2]
[347058452,1735487029035,-500.0,0.00011541,2]
[347058453,1735487029058,-500.0,0.00011541,2]
[347058454,1735487029081,-1238.29,0.00011541,2]
[347058455,1735487029103,-322.67875287,0.00011541,2]
[347058456,1735487029195,503.53,0.0001085,2]
[347058457,1735487033084,-2001.49,0.0001154,2]
[347058458,1735487033107,-2772.07,0.0001154,2]
[347058459,1735487033128,-649.02124713,0.00011541,2]
[347058460,1735487033149,-523.69,0.00011541,2]
[347058461,1735487033172,-737.64,0.00011541,2]
[347058462,1735487033194,-1638.69,0.00011541,2]
[347058463,1735487033216,-1677.39875287,0.00011541,2]
[347058464,1735487037719,-355.33124713,0.00011541,2]
[347058465,1735487037741,-500.0,0.00011541,2]
[347058466,1735487037763,-500.0,0.00011541,2]
[347058467,1735487037785,-512.96,0.00011541,2]
[347058468,1735487037807,-500.0,0.00011541,2]
[347058469,1735487037829,-873.76,0.00011541,2]
[347058470,1735487037851,-1169.76,0.00011541,2]
[347058471,1735487037874,-892.52,0.00011541,2]
[347058472,1735487037897,-1054.56,0.00011541,2]
[347058473,1735487037918,-500.0,0.00011541,2]
[347058474,1735487037940,-500.0,0.00011541,2]
[347058475,1735487037961,-500.0,0.00011541,2]
[347058476,1735487037984,-524.75,0.00011541,2]
[347058477,1735487038007,-500.0,0.00011541,2]
[347058478,1735487038028,-1116.35875287,0.00011541,2]
[347058479,1735487043145,-500.0,0.0001154,2]
[347058480,1735487043174,-300.0,0.0001154,2]
[347058481,1735487043198,-254.79124713,0.00011541,2]
[347058482,1735487043222,-2335.11,0.00011541,2]
[347058483,1735487043246,-777.88,0.00011541,2]
[347058484,1735487043490,-500.0,0.00011541,2]
[347058485,1735487043514,-244.64200654,0.00011541,2]
[347058486,1735487043537,-500.0,0.00011541,2]
[347058487,1735487043560,-500.0,0.00011541,2]
[347058488,1735487043582,-500.0,0.00011541,2]
[347058489,1735487043606,-978.67,0.00011541,2]
[347058490,1735487043628,-500.0,0.00011541,2]
[347058491,1735487043651,-501.15,0.00011541,2]
[347058492,1735487043680,-500.0,0.00011541,2]
[347058493,1735487043705,-500.0,0.00011541,2]
[347058494,1735487043728,-500.0,0.00011541,2]
[347058495,1735487043752,-107.75674633,0.00011541,2]
[347058496,1735487044365,200.0,0.00010829,2]
[347058497,1735487047683,-167.1235969,0.00011441,2]
[347058498,1735487047705,-392.24325367,0.00011541,2]
[347058499,1735487047728,-534.68,0.00011541,2]
[347058500,1735487047750,-761.12,0.00011541,2]
[347058501,1735487047773,-500.0,0.00011541,2]
[347058502,1735487047795,-500.0,0.00011541,2]
[347058503,1735487047818,-500.0,0.00011541,2]
[347058504,1735487047840,-500.0,0.00011541,2]
[347058505,1735487047864,-1185.13,0.00011541,2]
[347058506,1735487047887,-2124.73,0.00011541,2]
[347058507,1735487047908,-500.0,0.00011541,2]
[347058508,1735487047930,-500.0,0.00011541,2]
[347058509,1735487047951,-500.0,0.00011541,2]
[347058510,1735487047972,-500.0,0.00011541,2]
[347058511,1735487047996,-834.97314943,0.00011541,2]
[347058512,1735487052597,-365.31685057,0.00011541,2]
[347058513,1735487052618,-500.0,0.00011541,2]
[347058514,1735487052639,-500.0,0.00011541,2]
[347058515,1735487052662,-500.0,0.00011541,2]
[347058516,1735487052688,-500.0,0.00011541,2]
[347058517,1735487052711,-500.0,0.00011541,2]
[347058518,1735487052732,-500.0,0.00011541,2]
[347058519,1735487052755,-500.0,0.00011541,2]
[347058520,1735487052775,-1370.46,0.00011541,2]
[347058521,1735487052797,-1125.95,0.00011541,2]
[347058522,1735487052819,-1056.11,0.00011541,2]
[347058523,1735487052841,-500.0,0.00011541,2]
[347058524,1735487052863,-658.57,0.00011541,2]
[347058525,1735487052885,-500.0,0.00011541,2]
[347058526,1735487052907,-500.0,0.00011541,2]
[347058527,1735487052928,-423.59314943,0.00011541,2]
[347058528,1735487058335,-582.32685057,0.00011541,2]
[347058529,1735487058357,-1283.32,0.00011541,2]
[347058530,1735487058379,-1876.81,0.00011541,2]
[347058531,1735487058401,-500.0,0.00011541,2]
[347058532,1735487058422,-500.0,0.00011541,2]
[347058533,1735487058445,-500.0,0.00011541,2]
[347058534,1735487058467,-659.8,0.00011541,2]
[347058535,1735487058489,-524.78,0.00011541,2]
[347058536,1735487058512,-1675.75,0.00011541,2]
[347058537,1735487058534,-1123.38,0.00011541,2]
[347058538,1735487058557,-694.89,0.00011541,2]
[347058539,1735487058579,-78.94314943,0.00011541,2]
[347058540,1735487062459,-4179.33,0.0001154,2]
[347058541,1735487062482,-1014.57685057,0.00011541,2]
[347058542,1735487062504,-500.0,0.00011541,2]
[347058543,1735487062526,-573.24,0.00011541,2]
[347058544,1735487062549,-415.62063895,0.00011541,2]
[347058545,1735487062571,-500.0,0.00011541,2]
[347058546,1735487062592,-500.0,0.00011541,2]
[347058547,1735487062612,-500.0,0.00011541,2]
[347058548,1735487062634,-500.0,0.00011541,2]
[347058549,1735487062654,-518.64,0.00011541,2]
[347058550,1735487062679,-500.0,0.00011541,2]
[347058551,1735487062702,-298.59251048,0.00011541,2]
[347058552,1735487066790,-2260.79,0.0001154,2]
[347058553,1735487066813,-1451.79748952,0.00011541,2]
[347058554,1735487066841,-535.49,0.00011541,2]
[347058555,1735487066864,-500.0,0.00011541,2]
[347058556,1735487066886,-1085.64,0.00011541,2]
[347058557,1735487066908,-500.0,0.00011541,2]
[347058558,1735487066930,-1264.24,0.00011541,2]
[347058559,1735487066956,-704.4,0.00011541,2]
[347058560,1735487066977,-500.0,0.00011541,2]
[347058561,1735487066999,-1194.63,0.00011541,2]
[347058562,1735487067020,-3.01251048,0.00011541,2]
[347058563,1735487071386,-899.43,0.0001154,2]
[347058564,1735487071408,-599.56748952,0.00011541,2]
[347058565,1735487071430,-2147.82,0.00011541,2]
[347058566,1735487071458,-500.0,0.00011541,2]
[347058567,1735487071482,-500.0,0.00011541,2]
[347058568,1735487071504,-519.1895154,0.00011541,2]
[347058569,1735487071528,-512.9,0.00011541,2]
[347058570,1735487071551,-500.0,0.00011541,2]
[347058571,1735487071573,-513.54,0.00011541,2]
[347058572,1735487071595,-500.0,0.00011541,2]
[347058573,1735487071618,-1573.75,0.00011541,2]
[347058574,1735487071640,-1233.80299508,0.00011541,2]
[347058575,1735487075679,-420.75700492,0.00011541,2]
[347058576,1735487075704,-958.07,0.00011541,2]
[347058577,1735487075726,-500.0,0.00011541,2]
[347058578,1735487075747,-500.0,0.00011541,2]
[347058579,1735487075772,-500.0,0.00011541,2]
[347058580,1735487075795,-500.0,0.00011541,2]
[347058581,1735487075819,-2036.89,0.00011541,2]
[347058582,1735487075842,-500.0,0.00011541,2]
[347058583,1735487075864,-500.0,0.00011541,2]
[347058584,1735487075886,-500.0,0.00011541,2]
[347058585,1735487075908,-2392.72,0.00011541,2]
[347058586,1735487075931,-500.0,0.00011541,2]
[347058587,1735487075955,-191.56299508,0.00011541,2]
[347058589,1735487079864,-5781.15,0.0001154,2]
[347058590,1735487079887,-308.43700492,0.00011541,2]
[347058591,1735487079911,-698.39,0.00011541,2]
[347058592,1735487079935,-500.0,0.00011541,2]
[347058593,1735487079959,-2360.4,0.00011541,2]
[347058594,1735487079981,-351.62299508,0.00011541,2]
[347058595,1735487083557,-148.37700492,0.00011541,2]
[347058596,1735487083581,-1236.74,0.00011541,2]
[347058597,1735487083604,-785.89,0.00011541,2]
[347058598,1735487083626,-500.0,0.00011541,2]
[347058599,1735487083648,-500.0,0.00011541,2]
[347058600,1735487083670,-500.0,0.00011541,2]
[347058601,1735487083697,-500.0,0.00011541,2]
[347058602,1735487083720,-500.0,0.00011541,2]
[347058603,1735487083743,-835.78,0.00011541,2]
[347058604,1735487083765,-1267.48,0.00011541,2]
[347058605,1735487083791,-500.0,0.00011541,2]
[347058606,1735487083812,-500.0,0.00011541,2]
[347058607,1735487083833,-1063.74,0.00011541,2]
[347058608,1735487083854,-500.0,0.00011541,2]
[347058609,1735487083876,-661.99299508,0.00011541,2]
[347058610,1735487087578,-136.17700492,0.00011541,2]
[347058611,1735487087601,-1949.25,0.00011541,2]
[347058612,1735487087624,-500.0,0.00011541,2]
[347058613,1735487087646,-1658.16,0.00011541,2]
[347058614,1735487087670,-2358.83,0.00011541,2]
[347058615,1735487087698,-500.0,0.00011541,2]
[347058616,1735487087725,-500.0,0.00011541,2]
[347058617,1735487087748,-500.0,0.00011541,2]
[347058618,1735487087770,-479.44971031,0.00011541,2]
[347058619,1735487087792,-500.0,0.00011541,2]
[347058620,1735487087815,-500.0,0.00011541,2]
[347058621,1735487087836,-418.13328477,0.00011541,2]
[347058622,1735487092523,-500.0,0.0001154,2]
[347058623,1735487092546,-81.86671523,0.00011541,2]
[347058624,1735487092568,-500.0,0.00011541,2]
[347058625,1735487092589,-513.44,0.00011541,2]
[347058626,1735487092611,-500.0,0.00011541,2]
[347058627,1735487092633,-632.48,0.00011541,2]
[347058628,1735487092655,-1669.85,0.00011541,2]
[347058629,1735487092678,-500.0,0.00011541,2]
[347058630,1735487092702,-500.0,0.00011541,2]
[347058631,1735487092726,-1028.72,0.00011541,2]
[347058632,1735487092748,-1554.84,0.00011541,2]
[347058633,1735487092772,-500.0,0.00011541,2]
[347058634,1735487092794,-1485.92,0.00011541,2]
[347058635,1735487092815,-32.88328477,0.00011541,2]
[347058636,1735487099951,-1207.65,0.0001154,2]
[347058637,1735487099976,-1918.1,0.0001154,2]
[347058638,1735487099998,-467.11671523,0.00011541,2]
[347058639,1735487100021,-500.0,0.00011541,2]
[347058640,1735487100047,-500.0,0.00011541,2]
[347058641,1735487100070,-294.94035624,0.00011541,2]
[347058642,1735487100093,-1334.02,0.00011541,2]
[347058643,1735487100116,-500.0,0.00011541,2]
[347058644,1735487100139,-500.0,0.00011541,2]
[347058645,1735487100162,-658.89,0.00011541,2]
[347058646,1735487100186,-1149.65,0.00011541,2]
[347058647,1735487100210,-969.63292853,0.00011541,2]
[347058648,1735487105187,-10000.0,0.00011541,2]
[347058649,1735487109426,-500.0,0.0001154,2]
[347058650,1735487109450,-500.0,0.0001154,2]
[347058651,1735487109475,-500.0,0.00011541,2]
[347058652,1735487109499,-1099.39,0.00011541,2]
[347058653,1735487109523,-705.18,0.00011541,2]
[347058654,1735487109547,-644.63,0.00011541,2]
[347058655,1735487109572,-5228.91,0.00011541,2]
[347058656,1735487109595,-821.89,0.00011541,2]
[347058657,1735487113416,1038.23,0.0001079,2]
[347058658,1735487113738,-500.0,0.0001154,2]
[347058659,1735487113771,-500.0,0.0001154,2]
[347058660,1735487113806,-5011.04,0.0001154,2]
[347058661,1735487113838,-1417.98,0.00011541,2]
[347058662,1735487113870,-1633.27,0.00011541,2]
[347058663,1735487113902,-500.94330357,0.00011541,2]
[347058664,1735487113941,-436.76669643,0.00011541,2]
[347058665,1735487119381,-2656.56,0.0001154,2]
[347058666,1735487119405,-4634.14,0.0001154,2]
[347058667,1735487119429,-531.78,0.0001154,2]
[347058668,1735487119453,-546.74,0.0001154,2]
[347058669,1735487119476,-64.73564403,0.00011541,2]
[347058670,1735487119502,-533.87,0.00011541,2]
[347058671,1735487119525,-500.0,0.00011541,2]
[347058672,1735487119548,-532.17435597,0.00011541,2]
[347058673,1735487127600,-2898.94,0.0001154,2]
[347058674,1735487127628,-1095.89564403,0.00011541,2]
[347058675,1735487127651,-1078.81,0.00011541,2]
[347058676,1735487127673,-500.0,0.00011541,2]
[347058677,1735487127698,-500.0,0.00011541,2]
[347058678,1735487127721,-501.68527728,0.00011541,2]
[347058679,1735487127744,-500.0,0.00011541,2]
[347058680,1735487127766,-1774.57,0.00011541,2]
[347058681,1735487127790,-500.0,0.00011541,2]
[347058682,1735487127813,-500.0,0.00011541,2]
[347058683,1735487127835,-150.09907869,0.00011541,2]
[347058684,1735487128910,-349.90092131,0.00011541,2]
[347058685,1735487128932,-512.6095994,0.00011541,2]
[347058686,1735487128962,-500.0,0.00011541,2]
[347058687,1735487128991,-527.96,0.00011541,2]
[347058688,1735487129014,-500.0,0.00011541,2]
[347058689,1735487129036,-1186.02,0.00011541,2]
[347058690,1735487129061,-1677.93,0.00011541,2]
[347058691,1735487129088,-2354.55,0.00011541,2]
[347058692,1735487129115,-2391.02947929,0.00011541,2]
[347058693,1735487132723,-1057.0,0.00011452,2]
[347058694,1735487132747,-500.0,0.0001154,2]
[347058695,1735487132770,-921.11,0.0001154,2]
[347058696,1735487132796,-5767.29052071,0.00011541,2]
[347058697,1735487132820,-500.0,0.00011541,2]
[347058698,1735487132844,-500.0,0.00011541,2]
[347058699,1735487132868,-500.0,0.00011541,2]
[347058700,1735487132891,-254.59947929,0.00011541,2]
[347058701,1735487136975,-878.53,0.0001154,2]
[347058702,1735487137002,-7818.39,0.0001154,2]
[347058703,1735487137025,-758.24052071,0.00011541,2]
[347058704,1735487137048,-500.0,0.00011541,2]
[347058705,1735487137071,-44.83947929,0.00011541,2]
[347058706,1735487141644,-500.0,0.0001154,2]
[347058707,1735487141667,-500.0,0.0001154,2]
[347058708,1735487141690,-500.0,0.0001154,2]
[347058709,1735487141716,-929.12052071,0.00011541,2]
[347058710,1735487141738,-500.0,0.00011541,2]
[347058711,1735487141759,-502.68108073,0.00011541,2]
[347058712,1735487141781,-1254.01,0.00011541,2]
[347058713,1735487141804,-950.41,0.00011541,2]
[347058714,1735487141827,-500.0,0.00011541,2]
[347058715,1735487141854,-756.68,0.00011541,2]
[347058716,1735487141881,-1247.74,0.00011541,2]
[347058717,1735487141905,-500.0,0.00011541,2]
[347058718,1735487141931,-500.0,0.00011541,2]
[347058719,1735487141956,-500.0,0.00011541,2]
[347058720,1735487141979,-359.35839856,0.00011541,2]
[347058721,1735487146032,-500.0,0.0001154,2]
[347058722,1735487146053,-500.0,0.0001154,2]
[347058723,1735487146077,-500.0,0.0001154,2]
[347058724,1735487146105,-639.23160144,0.00011541,2]
[347058725,1735487146127,-500.0,0.00011541,2]
[347058726,1735487146150,-1822.39,0.00011541,2]
[347058727,1735487146171,-500.0,0.00011541,2]
[347058728,1735487146193,-2524.51,0.00011541,2]
[347058729,1735487146215,-500.0,0.00011541,2]
[347058730,1735487146237,-1456.66,0.00011541,2]